[Event "3rd President Cup-A 2024"]
[Site "Tashkent"]
[Date "2024.11.27"]
[Round "7.12"]
[White "Ayush Sharma"]
[Black "Soham Kamotra"]
[Result "1/2-1/2"]
[ECO "B70"]
[WhiteElo "2464"]
[BlackElo "2420"]
[Annotator "TA"]
[PlyCount "142"]
[EventDate "2024.11.22"]
[EventType "swiss"]
[EventCountry "UZB"]
[SourceTitle "playchess.com"]
[Source "ChessBase"]
[SourceQuality "1"]
[TimeControl "5400+30"]

{[%evp 15,142,10,13,0,0,0,8,3,56,46,57,47,65,64,60,53,58,47,60,54,66,70,72,66,97,97,106,98,93,87,150,150,154,168,158,138,158,70,68,67,70,70,95,79,74,96,95,97,96,77,80,80,90,73,86,72,64,64,64,59,59,59,59,59,68,59,63,60,62,62,97,93,115,115,115,115,115,115,115,115,115,115,115,115,115,115,115,115,115,115,115,115,115,115,115,115,115,115,115,89,89,81,89,89,89,89,89,89,89,89,89,37,89,89,89,0,89,89,89,89,89,89,89,0,89,0,89,0,89]} 1. e4 {[%emt 0:02:16]} c5 {[%emt 0:00:05]} 2. Nf3 {[%emt 0:00:34]} d6 {[%emt 0:00:09]} 3. d4 {[%emt 0:00:05]} cxd4 {[%emt 0:00:06]} 4. Nxd4 {[%emt 0:00:03]} Nf6 {[%emt 0:00:07]} 5. Nc3 {[%emt 0:00:03]} Nc6 {[%emt 0:00:10]} 6. g3 {[%emt 0:00:02]} g6 {[%emt 0:01:35]} 7. Bg2 {[%emt 0:00:09]} Nxd4 {[%emt 0:05:43]} 8. Qxd4 {[%emt 0:00:06]} Bg7 {[%emt 0:00:06]} 9. e5 {[%emt 0:00:04]} Nd7 {[%emt 0:05:01]} 10. Qa4 {[%emt 0:00:02]} O-O {[%emt 0:05:02]} 11. exd6 {[%emt 0:00:24] Bg5 is the strong threat.} Nc5 {[%emt 0:01:09]} ({Black should play} 11... Nb6 $11 12. Qf4 exd6) 12. Qa3 $14 {[%emt 0:10:08]} Qxd6 {[%emt 0:07:27][%cal Oc5d3] Threatens to win with ...Nd3+!} 13. O-O {[%emt 0:01:16] Hoping for Rd1.} Ne4 {[%emt 0:01:16]} 14. Qxd6 {[%emt 0:01:57]} Nxd6 {[%emt 0:00:02][%cal Be4d6,Bd6c4,Bc4a5,Ba5c4,Bc4b2,Bb2d1][%mdl 32]} 15. Nd5 {[%emt 0:01:37]} e6 {[%emt 0:06:26]} 16. Ne7+ {[%emt 0:08:01]} Kh8 {[%emt 0:01:04]} 17. Rd1 {[%emt 0:00:00]} Nc4 {[%emt 0:00:43]} 18. Rb1 {[%emt 0:04:42]} Bf6 $1 {[%emt 0:05:49]} 19. b3 {[%emt 0:04:19][%cal Bb2b3,Bb3b4][%mdl 32]} Na5 {[%emt 0:12:16]} 20. b4 $36 {[%emt 0:13:34][%mdl 2048] Black is under strong pressure. White is much more active. The black rooks are passive.} Nc4 {[%emt 0:01:21]} 21. Nxc8 {[%emt 0:00:21]} Raxc8 {[%emt 0:00:09]} 22. Bxb7 {[%emt 0:03:30]} Rfd8 {[%emt 0:05:52]} (22... Rc7 $142 23. Be4 Be7) 23. Bf4 $16 {[%emt 0:02:46]} Nb2 {[%emt 0:00:31]} 24. Rxd8+ {[%emt 0:04:00]} Rxd8 {[%emt 0:00:02]} 25. b5 {[%emt 0:08:20]} Nd1 {[%emt 0:01:49]} 26. c4 {[%emt 0:01:58]} (26. Bf3 $16 g5 27. Bxg5 (27. Rxd1 Rxd1+ 28. Bxd1 gxf4 $16) (27. Bc7 Rc8 $16) 27... Bxg5 28. Rxd1) 26... g5 $1 $14 {[%emt 0:04:18]} 27. Bc7 {[%emt 0:01:13] A strong pair of Bishops.} Rd2 {[%emt 0:00:09][%csl LRa2,LRf2][%cal Of6d4]} 28. Ba5 $1 {[%emt 0:01:38]} Rxa2 {[%emt 0:00:34]} 29. Rxd1 {[%emt 0:00:26]} Rxa5 {[%emt 0:00:02][%mdl 4096] Endgame. KRB-KRB} 30. Rd7 {[%emt 0:00:12][%cal Oc4c5]} Ra1+ {[%emt 0:01:13]} 31. Kg2 {[%emt 0:02:50][%cal Oc4c5] And now c5! would win.} Rc1 {[%emt 0:01:25]} 32. Rxf7 {[%emt 0:05:21]} Bd4 {[%emt 0:00:29]} 33. Be4 {[%emt 0:10:21]} Rxc4 {[%emt 0:00:37]} 34. Rxh7+ {[%emt 0:01:51]} ({Don't play} 34. Bxh7 Rb4 $14) 34... Kg8 {[%emt 0:00:02]} 35. Rb7 {[%emt 0:04:27]} Bb6 {[%emt 0:00:32]} 36. f3 {[%emt 0:00:10]} Rc7 {[%emt 0:00:21]} 37. Rb8+ {[%emt 0:00:11]} Kg7 {[%emt 0:00:18]} 38. Kh3 {[%emt 0:00:15]} Bg1 {[%emt 0:00:18]} 39. Rd8 {[%emt 0:01:46]} Bb6 {[%emt 0:06:36]} 40. Rd6 {[%emt 0:04:10]} Kf6 {[%emt 0:01:49]} 41. Rc6 {[%emt 0:00:05]} Rd7 $1 {[%emt 0:00:08]} 42. Kg4 {[%emt 0:02:36]} Rd2 {[%emt 0:00:28]} 43. Bf5 {[%emt 0:00:43]} Rd4+ {[%emt 0:00:06]} 44. f4 {[%emt 0:00:05]} gxf4 {[%emt 0:00:17]} 45. gxf4 {[%emt 0:00:07]} Bc7 {[%emt 0:02:00]} 46. Rxe6+ {[%emt 0:01:13]} Kf7 {[%emt 0:00:02]} 47. Re4 $1 {[%emt 0:03:15]} Rxe4 {[%emt 0:00:05]} 48. Bxe4 $16 {[%emt 0:00:05] KB-KB} Kf6 {[%emt 0:00:02]} 49. h4 {[%emt 0:00:08][%cal Bh2h4,Bh4h5][%mdl 32]} Bd6 {[%emt 0:00:04]} 50. h5 {[%emt 0:00:31]} Bf8 {[%emt 0:00:01]} 51. Bd3 {[%emt 0:00:47]} Bh6 {[%emt 0:00:22]} 52. Kf3 {[%emt 0:00:06]} Bf8 {[%emt 0:01:03]} 53. Ke4 {[%emt 0:00:42]} Bh6 {[%emt 0:00:09]} 54. Bc4 {[%emt 0:01:03]} Bf8 {[%emt 0:00:01]} 55. Bg8 {[%emt 0:00:15]} Bh6 {[%emt 0:00:08]} 56. Bh7 {[%emt 0:00:22]} Ke6 {[%emt 0:00:18]} 57. f5+ {[%emt 0:00:06]} Kf6 {[%emt 0:00:04]} 58. Kd5 {[%emt 0:00:05]} Be3 {[%emt 0:00:23]} 59. Kd6 {[%emt 0:00:09]} Bf4+ {[%emt 0:00:13]} 60. Kd7 {[%emt 0:00:07]} Be3 {[%emt 0:00:07]} 61. Bg6 {[%emt 0:00:15]} Bf4 {[%emt 0:00:16]} 62. Ke8 {[%emt 0:00:19]} Bh6 {[%emt 0:00:07] [#]} 63. Bh7 {[%emt 0:00:07]} (63. Kd8 $1 $16) 63... Bg7 {[%emt 0:00:51] [#]} (63... Bg5 $14) 64. Kd7 $1 {[%emt 0:01:15]} Bh6 {[%emt 0:00:05]} 65. Bg6 {[%emt 0:00:36]} (65. Kc6 $16) 65... Be3 {[%emt 0:00:07]} (65... Bf4 $1 $11 {remains equal.}) 66. Kc6 {[%emt 0:00:16]} Kg5 {[%emt 0:00:09]} 67. Kb7 {[%emt 0:01:00]} Bd4 {[%emt 0:00:14]} 68. Kc7 {[%emt 0:00:19]} Be3 {[%emt 0:00:08]} 69. Kd7 {[%emt 0:01:19]} Kf6 {[%emt 0:00:08]} 70. Bh7 {[%emt 0:00:06]} Bh6 {[%emt 0:00:19]} 71. Ke8 {[%emt 0:00:32]} Bg7 {[%emt 0:00:10] Weighted Error Value: White=0.04 (flawless) /Black=0.06 (flawless) .  Mistake:       	White=3     	Black=4      Inaccurate:     	---       	Black=2      OK:         	White=24    	Black=24     Best:        	White=9     	Black=7      Strong:       	White=3     	Black=3} 1/2-1/2

[Event "3rd President Cup-A 2024"]
[Site "Tashkent"]
[Date "2024.11.27"]
[Round "7.13"]
[White "Xu, Minghui"]
[Black "Suyarov, Mukhammadzokhid"]
[Result "1-0"]
[ECO "D46"]
[WhiteElo "2405"]
[BlackElo "2464"]
[Annotator "TA"]
[PlyCount "49"]
[EventDate "2024.11.22"]
[EventType "swiss"]
[EventCountry "UZB"]
[SourceTitle "playchess.com"]
[Source "ChessBase"]
[SourceQuality "1"]
[TimeControl "5400+30"]

{[%evp 22,49,34,12,12,26,32,26,29,27,20,20,102,107,87,89,104,102,110,106,172,168,240,251,256,255,268,264,266,269]} 1. d4 {[%emt 0:00:23]} Nf6 {[%emt 0:00:39]} 2. c4 {[%emt 0:01:59]} e6 {[%emt 0:00:34]} 3. Nf3 {[%emt 0:00:08]} d5 {[%emt 0:00:30]} 4. Nc3 {[%emt 0:00:18]} c6 {[%emt 0:00:30]} 5. e3 {[%emt 0:00:24]} Nbd7 {[%emt 0:00:27]} 6. Qc2 {[%emt 0:00:38]} Bd6 {[%emt 0:00:47]} 7. Be2 {[%emt 0:00:25]} O-O {[%emt 0:00:18]} 8. O-O {[%emt 0:01:12]} dxc4 {[%emt 0:00:15]} 9. Bxc4 {[%emt 0:00:22]} b5 {[%emt 0:00:32]} 10. Be2 {[%emt 0:00:30]} Bb7 {[%emt 0:01:03]} 11. Rd1 {[%emt 0:00:37]} Qc7 {[%emt 0:09:40]} 12. e4 {[%emt 0:00:20] Strongly threatening e5.} e5 {[%emt 0:01:03]} 13. Bg5 {[%emt 0:00:32]} exd4 {[%emt 0:10:35]} 14. Rxd4 {[%emt 0:00:07]} b4 {[%emt 0:29:48] White has an edge.} 15. Bxf6 {[%emt 0:27:41]} (15. e5 {is more complex.} Nxe5 16. Bxf6 bxc3 17. Rad1) 15... Nxf6 {[%emt 0:20:12]} 16. Na4 {[%emt 0:02:05] And now Rad1 would win.} c5 {[%emt 0:03:18] [#]} (16... Rfe8 $11 {remains equal.} 17. Rad1 Bf8) 17. Rxd6 $1 $16 {[%emt 0:01:22][%mdl 512]} Qxd6 {[%emt 0:00:07]} 18. e5 {[%emt 0:00:06]} Qe7 {[%emt 0:00:04]} 19. exf6 {[%emt 0:01:22]} Qxf6 {[%emt 0:00:08]} 20. Qxc5 {[%emt 0:12:20]} ({Don't play} 20. Nxc5 $6 Rac8 21. Rc1 Qe7 $11) 20... Bc6 {[%emt 0:02:44]} (20... a5 $16) 21. Qxb4 $18 {[%emt 0:04:45]} Rae8 {[%emt 0:01:15]} (21... Rfb8 $142 22. Qa3 Bxa4 23. Qxa4 Rxb2) 22. Nc3 {[%emt 0:01:49]} Rb8 {[%emt 0:02:28] White has a decisive advantage.} 23. Qa3 {[%emt 0:03:23]} Rfd8 {[%emt 0:00:49]} 24. Rd1 {[%emt 0:03:22]} ({Less strong is} 24. Qxa7 Rxb2 25. Qe3 Re8 $11 (25... Rxe2 26. Qxe2 Qxc3 27. Qe1 $14)) 24... Rxd1+ {[%emt 0:01:17]} 25. Nxd1 {[%emt 0:00:38] Black got outplayed after the opening.   Weighted Error Value: White=0.00 (flawless) /Black=0.27 (precise) .  Mistake:       	---       	Black=3      OK:         	White=8     	Black=2      Best:        	White=2     	---        Brilliant:      	White=1     	---} 1-0

[Event "3rd President Cup-A 2024"]
[Site "Tashkent"]
[Date "2024.11.27"]
[Round "7.14"]
[White "Audi Ameya"]
[Black "Tabatabaei, M. Amin"]
[Result "1-0"]
[ECO "B48"]
[WhiteElo "2412"]
[BlackElo "2686"]
[Annotator "RC"]
[PlyCount "115"]
[EventDate "2024.11.22"]
[EventType "swiss"]
[EventCountry "UZB"]
[SourceTitle "playchess.com"]
[Source "ChessBase"]
[SourceQuality "1"]
[TimeControl "5400+30"]

1. e4 {[%emt 0:00:02]} c5 {[%emt 0:02:00]} 2. Nf3 {[%emt 0:00:06]} e6 {[%emt 0:00:08]} 3. d4 {[%emt 0:00:05]} cxd4 {[%emt 0:00:04]} 4. Nxd4 {[%emt 0:00:03]} Nc6 {[%emt 0:00:05]} 5. Nc3 {[%emt 0:00:04]} Qc7 {[%emt 0:00:05]} 6. Be3 {[%emt 0:00:08]} a6 {[%emt 0:00:15]} 7. Qf3 {[%emt 0:00:16]} h5 {[%emt 0:00:11]} 8. Nxc6 {[%emt 0:00:36]} Qxc6 {[%emt 0:00:25]} 9. a4 {[%emt 0:00:08]} Bb4 {[%emt 0:00:29]} 10. Bd2 {[%emt 0:07:41]} Ne7 {[%emt 0:04:18]} 11. Bd3 {[%emt 0:00:58]} b6 {[%emt 0:02:51]} 12. O-O {[%emt 0:01:40]} Bb7 {[%emt 0:00:15]} 13. h3 {[%emt 0:15:24]} f6 {[%emt 0:15:18]} 14. Qe2 {[%emt 0:17:43]} g5 {[%emt 0:06:56]} 15. f4 {[%emt 0:03:44]} g4 {[%emt 0:02:10]} 16. h4 {[%emt 0:02:19]} Kf7 {[%emt 0:03:08]} 17. f5 {[%emt 0:09:11]} e5 {[%emt 0:10:31]} 18. Kh2 {[%emt 0:15:47]} Rac8 {[%emt 0:19:16]} 19. Nb1 {[%emt 0:00:18]} Bxd2 {[%emt 0:06:22]} 20. Nxd2 {[%emt 0:00:48]} d5 {[%emt 0:00:01]} 21. c4 {[%emt 0:02:02]} dxc4 {[%emt 0:03:57]} 22. Bxc4+ {[%emt 0:03:19]} Kg7 {[%emt 0:00:03]} 23. Rfc1 {[%emt 0:01:01]} Qd6 {[%emt 0:03:39]} 24. Nf1 {[%emt 0:00:05]} Nc6 {[%emt 0:07:35]} 25. Ng3 {[%emt 0:00:24]} Nd4 {[%emt 0:03:52]} 26. Nxh5+ {[%emt 0:05:27]} Kf8 {[%emt 0:00:01]} 27. Qxg4 {[%emt 0:00:06]} Rc7 {[%emt 0:00:02]} 28. Qg6 {[%emt 0:05:22]} Bxe4 {[%emt 0:00:28]} 29. Be6 {[%emt 0:02:03]} Nxe6 {[%emt 0:00:41]} 30. Qxf6+ {[%emt 0:00:34]} Kg8 {[%emt 0:00:01]} 31. Qg6+ {[%emt 0:00:28]} Kf8 {[%emt 0:00:33]} 32. Qf6+ {[%emt 0:01:20]} Kg8 {[%emt 0:00:01]} 33. Rxc7 {[%emt 0:00:26]} Qxc7 {[%emt 0:00:01]} 34. Qxe6+ {[%emt 0:00:07]} Qf7 {[%emt 0:00:04]} 35. Qxe5 {[%emt 0:03:42]} Qxh5 {[%emt 0:00:35]} 36. Qxe4 {[%emt 0:00:27]} Qxh4+ {[%emt 0:00:02]} 37. Qxh4 {[%emt 0:00:06]} Rxh4+ {[%emt 0:00:02]} 38. Kg3 {[%emt 0:00:43]} Rb4 {[%emt 0:00:01]} 39. Kf3 {[%emt 0:01:21]} Kf7 {[%emt 0:00:30]} 40. g4 {[%emt 0:00:23]} Kf6 {[%emt 0:00:24]} 41. Rh1 {[%emt 0:01:35]} Rb3+ {[%emt 0:00:52]} 42. Kf4 {[%emt 0:00:08]} Rb4+ {[%emt 0:00:03]} 43. Kg3 {[%emt 0:00:08]} Rb3+ {[%emt 0:00:30]} 44. Kf4 {[%emt 0:00:32]} Rb4+ {[%emt 0:00:13]} 45. Kg3 {[%emt 0:00:03]} Rb3+ {[%emt 0:00:59]} 46. Kh4 {[%emt 0:00:04]} Rxb2 {[%emt 0:00:03]} 47. Rc1 {[%emt 0:00:30]} Ke7 {[%emt 0:02:32]} 48. g5 {[%emt 0:00:35]} Rf2 {[%emt 0:00:49]} 49. Kg4 {[%emt 0:01:50]} b5 {[%emt 0:00:10]} 50. axb5 {[%emt 0:00:41]} axb5 {[%emt 0:00:01]} 51. Rb1 {[%emt 0:00:37]} Kf7 {[%emt 0:00:02]} 52. Rxb5 {[%emt 0:00:04]} Rg2+ {[%emt 0:00:04]} 53. Kh5 {[%emt 0:00:16]} Rh2+ {[%emt 0:00:04]} 54. Kg4 {[%emt 0:00:01]} Rg2+ {[%emt 0:00:05]} 55. Kf4 {[%emt 0:00:02]} Rf2+ {[%emt 0:00:16]} 56. Kg3 {[%emt 0:00:07]} Rc2 {[%emt 0:00:05]} 57. Rb7+ {[%emt 0:00:03]} Kf8 {[%emt 0:00:04]} 58. Kg4 {[%emt 0:00:07]} 1-0

[Event "3rd President Cup-A 2024"]
[Site "Tashkent"]
[Date "2024.11.27"]
[Round "7.15"]
[White "Rakhmatullaev, Almas"]
[Black "Gareyev, Timur"]
[Result "0-1"]
[ECO "B04"]
[WhiteElo "2410"]
[BlackElo "2552"]
[Annotator "TA"]
[PlyCount "71"]
[EventDate "2024.11.22"]
[EventType "swiss"]
[EventCountry "UZB"]
[SourceTitle "playchess.com"]
[Source "ChessBase"]
[SourceQuality "1"]
[TimeControl "5400+30"]

{[%evp 10,71,34,45,45,28,50,43,58,41,44,41,35,42,43,24,47,35,40,44,37,35,54,45,54,0,0,0,0,0,0,-19,-10,-7,-4,-23,-12,-17,-18,-32,-21,-25,-9,-60,-8,-113,-107,-106,-91,-456,-444,-678,-637,-1457,-1417,-29986,-29987,-29987,-29988,-29988,-29989,-29989,-29990,-29991]} 1. e4 {[%emt 0:01:43]} Nf6 {[%emt 0:00:12]} 2. e5 {[%emt 0:03:02]} Nd5 {[%emt 0:00:08]} 3. d4 {[%emt 0:00:10]} d6 {[%emt 0:00:06]} 4. Nf3 {[%emt 0:00:09]} dxe5 {[%emt 0:00:56]} 5. Nxe5 {[%emt 0:00:32]} c6 {[%emt 0:00:29]} 6. Be2 {[%emt 1:27:54]} Bf5 {[%emt 0:00:28]} 7. O-O $1 {[%emt 0:00:00]} Nd7 {[%emt 0:00:10]} 8. Nf3 {[%emt 0:00:00]} e6 {[%emt 0:04:06][%cal Be7e6,Be6e5][%mdl 32] White is slightly better.} 9. c4 {[%emt 0:00:00]} N5f6 {[%emt 0:01:40]} 10. Nc3 {[%emt 0:00:00]} Bd6 {[%emt 0:00:09]} 11. Nh4 {[%emt 0:00:00]} Bg6 {[%emt 0:02:22]} 12. Nxg6 {[%emt 0:00:00]} hxg6 {[%emt 0:00:20]} 13. g3 {[%emt 0:00:00]} e5 {[%emt 0:11:41]} 14. d5 {[%emt 0:00:00] [#] Threatens to win with dxc6.} Bc5 {[%emt 0:00:56]} 15. Bf3 {[%emt 0:00:00]} Rc8 {[%emt 0:00:53]} 16. Bg5 {[%emt 0:00:00]} Qc7 {[%emt 0:02:51]} 17. Bg4 {[%emt 0:00:00]} (17. a3 $14) 17... Bd4 {[%emt 0:24:42]} 18. Rc1 {[%emt 0:00:00]} Nxg4 {[%emt 0:10:42]} 19. Qxg4 {[%emt 0:00:00]} f5 {[%emt 0:00:22]} 20. Qe2 {[%emt 0:00:00][%cal Oc4c5]} Nf6 $1 {[%emt 0:03:49]} 21. Rfd1 {[%emt 0:00:00]} O-O {[%emt 0:01:38]} 22. Bxf6 {[%emt 0:00:00]} gxf6 {[%emt 0:06:57]} 23. h4 {[%emt 0:00:00]} Kg7 {[%emt 0:03:26]} 24. Kg2 {[%emt 0:00:00]} Rh8 {[%emt 0:03:19]} 25. b4 {[%emt 0:00:00]} Qf7 {[%emt 0:03:42]} 26. d6 {[%emt 0:00:24]} ({White should try} 26. Qf3 $11) 26... g5 {[%emt 0:01:11]} (26... a5 $15 27. a3 (27. bxa5 Rhd8 $15) 27... Ra8) 27. hxg5 {[%emt 0:04:06]} (27. Qd3 $11) 27... fxg5 $17 {[%emt 0:00:13]} 28. Rh1 {[%emt 0:03:42]} Rcd8 {[%emt 0:05:45]} 29. c5 $2 {[%emt 0:00:57][%mdl 8192] This costs White the game.} (29. Qd3 $17 {is tougher.}) 29... Rxh1 $19 {[%emt 0:02:20]} 30. Kxh1 {[%emt 0:00:47]} (30. Rxh1 $142 Bxc3 31. Qc2) 30... g4 {[%emt 0:01:55]} 31. Kg1 {[%emt 0:00:53]} Rh8 {[%emt 0:00:34] [#] ( -> ...Qh5)} 32. Qe1 {[%emt 0:01:30]} f4 {[%emt 0:02:14] Black mates.} 33. Qe4 {[%emt 0:00:36]} Qh5 {[%emt 0:00:41]} ({Stronger than} 33... fxg3 34. Qxg4+ Kf8 (34... Qg6 35. Qxg6+ Kxg6 36. Ne4 $15) 35. Qc8+ (35. Qxg3 $2 Rg8 $19) 35... Kg7 36. Qg4+ Qg6 37. Qxg6+ Kxg6 38. Ne4 $11) 34. Kf1 {[%emt 0:00:14]} f3 {[%emt 0:00:34][%cal Rh5h1]} ({Weaker is} 34... Qh1+ 35. Qxh1 Rxh1+ 36. Kg2 Rxc1 37. d7 f3+ (37... Rxc3 38. gxf4 Rf3 39. d8=Q $14) 38. Kh2 $11) 35. Ke1 {[%emt 0:00:19]} Qg5 {[%emt 0:00:10][%cal Rh8h1]} 36. Qf4 {[%emt 0:01:32] Weighted Error Value: White=0.65/Black=0.05 (flawless) .  Loses game:     	White=1     	---        Mistake:       	White=4     	Black=1      Inaccurate:     	White=1     	---        OK:         	White=9     	Black=11     Best:        	---       	Black=2      Strong:       	White=1     	Black=1} 0-1

[Event "3rd President Cup-A 2024"]
[Site "Tashkent"]
[Date "2024.11.27"]
[Round "7.18"]
[White "Nikitenko, Mihail"]
[Black "Akhilbay, Imangali"]
[Result "1-0"]
[ECO "D37"]
[WhiteElo "2490"]
[BlackElo "2306"]
[Annotator "TA"]
[PlyCount "63"]
[EventDate "2024.11.22"]
[EventType "swiss"]
[EventCountry "UZB"]
[SourceTitle "playchess.com"]
[Source "ChessBase"]
[SourceQuality "1"]
[TimeControl "5400+30"]

{[%evp 9,63,24,19,27,30,25,19,22,22,6,29,32,40,27,45,0,40,39,30,37,37,15,51,24,49,61,75,5,181,181,181,177,185,172,174,176,159,162,257,274,271,272,282,276,300,295,355,367,397,395,739,724,900,900,785,562]} 1. Nf3 {[%emt 0:00:04]} d5 {[%emt 0:01:10]} 2. d4 {[%emt 0:00:16]} e6 {[%emt 0:00:17]} 3. c4 {[%emt 0:00:23]} Nf6 {[%emt 0:00:04]} 4. Nc3 {[%emt 0:00:26]} a6 {[%emt 0:00:08]} 5. cxd5 {[%emt 0:00:27]} exd5 {[%emt 0:00:04]} 6. Bg5 {[%emt 0:00:04][%cal Bc1g5,Bg5h4,Bh4g3,Bg3e5][%mdl 32]} Be6 {[%emt 0:00:12]} 7. e3 {[%emt 0:00:05]} Nbd7 {[%emt 0:00:05]} 8. Bd3 {[%emt 0:00:06] The position is equal.} h6 {[%emt 0:00:11]} 9. Bh4 {[%emt 0:00:12]} g5 {[%emt 0:00:05]} 10. Bg3 {[%emt 0:00:06]} Nh5 {[%emt 0:00:03]} 11. Be5 {[%emt 0:03:13]} Nhf6 {[%emt 0:00:05]} 12. Bg3 {[%emt 0:02:06]} Nh5 {[%emt 0:00:05]} 13. Qc2 {[%emt 0:00:04]} Nxg3 {[%emt 0:00:37]} 14. hxg3 {[%emt 0:00:04]} Bg7 {[%emt 0:00:50]} 15. Rd1 {[%emt 0:04:17]} O-O {[%emt 0:06:08]} 16. Bh7+ {[%emt 0:01:02]} Kh8 {[%emt 0:00:10]} 17. Bf5 {[%emt 0:00:04]} Kg8 {[%emt 0:15:12] [#]} 18. Ne2 {[%emt 0:02:19] White has more active pieces.} (18. Bxe6 $1 $16 fxe6 19. O-O) 18... Nf6 {[%emt 0:12:12] Loses the game.} (18... Re8 $11 {and Black has nothing to worry.}) 19. Bxe6 $18 {[%emt 0:01:07]} fxe6 {[%emt 0:00:26]} 20. Qg6 {[%emt 0:00:04]} Ne4 {[%emt 0:16:49]} 21. Qxe6+ {[%emt 0:01:30]} Kh7 {[%emt 0:00:26]} 22. Nc3 {[%emt 0:00:09]} Nxc3 {[%emt 0:00:27]} 23. bxc3 {[%emt 0:00:03]} a5 {[%emt 0:00:19]} (23... Rf6 {was necessary.} 24. Qh3 (24. Nxg5+ Kg6 $14) 24... Kg8) 24. Rb1 {[%emt 0:02:00][%cal Bd1b1,Bb1b7,Bb7b8][%mdl 32]} Ra6 {[%emt 0:08:56]} 25. Qg4 {[%emt 0:00:05]} Kg8 {[%emt 0:00:05]} 26. Rxb7 {[%emt 0:00:05]} Qd6 {[%emt 0:00:43]} 27. O-O {[%emt 0:01:37]} Qc6 {[%emt 0:00:16]} 28. Rfb1 {[%emt 0:00:31]} Qxc3 {[%emt 0:00:15]} 29. Qd7 {[%emt 0:00:35][%csl LRc7,LRd5]} Rf7 $2 {[%emt 0:04:42]} (29... Rd6 30. Qxc7 Qxc7 31. Rxc7 Re8) 30. Qxd5 {[%emt 0:02:07] [#] White wants to mate with Rb8+. White is clearly winning.} Rd6 {[%emt 0:02:26]} 31. Rb8+ {[%emt 0:00:06]} Bf8 {[%emt 0:00:06]} 32. Qe4 {[%emt 0:00:04] Weighted Error Value: White=0.10 (very precise) /Black=0.31.  Loses game:     	---       	Black=1      Mistake:       	White=1     	Black=2      Inaccurate:     	---       	Black=1      OK:         	White=15    	Black=7      Best:        	White=1     	Black=3} 1-0

[Event "3rd President Cup-A 2024"]
[Site "Tashkent"]
[Date "2024.11.27"]
[Round "7.19"]
[White "Usov, Aleksandr E."]
[Black "Urazayev, Arystanbek"]
[Result "1/2-1/2"]
[ECO "D32"]
[WhiteElo "2314"]
[BlackElo "2480"]
[Annotator "RC"]
[PlyCount "46"]
[EventDate "2024.11.22"]
[EventType "swiss"]
[EventCountry "UZB"]
[SourceTitle "playchess.com"]
[Source "ChessBase"]
[SourceQuality "1"]
[TimeControl "5400+30"]

1. d4 {[%emt 1:31:00]} d5 {[%emt 1:31:00]} 2. c4 {[%emt 0:00:30]} e6 {[%emt 0:00:30]} 3. Nc3 {[%emt 0:00:30]} c5 {[%emt 0:00:30]} 4. cxd5 {[%emt 0:00:30]} cxd4 {[%emt 0:00:30]} 5. Qa4+ {[%emt 0:00:30]} Bd7 {[%emt 0:00:30]} 6. Qxd4 {[%emt 0:00:30]} exd5 {[%emt 0:00:30]} 7. Qxd5 {[%emt 0:00:30]} Nf6 {[%emt 0:00:30]} 8. Qd1 {[%emt 0:00:30]} Bc5 {[%emt 0:00:30]} 9. Nf3 {[%emt 0:00:30]} O-O {[%emt 0:00:30]} 10. e3 {[%emt 0:00:30]} Qe7 {[%emt 0:00:30]} 11. Be2 {[%emt 0:00:30]} Rd8 {[%emt 0:00:30]} 12. O-O {[%emt 0:00:30]} Nc6 {[%emt 0:00:30]} 13. a3 {[%emt 0:00:30]} Bf5 {[%emt 0:00:30]} 14. Qa4 {[%emt 0:00:30]} Ne5 {[%emt 0:00:30]} 15. e4 {[%emt 0:00:30]} Bg4 {[%emt 0:00:30]} 16. Bg5 {[%emt 0:00:30]} Nxf3+ {[%emt 0:00:30]} 17. Bxf3 {[%emt 0:00:30]} Bxf3 {[%emt 0:00:30]} 18. gxf3 Qe6 {[%emt 0:00:30]} 19. Rfd1 Qh3 {[%emt 0:00:30]} 20. Rxd8+ Rxd8 {[%emt 0:00:30]} 21. Rd1 Bxf2+ {[%emt 0:00:30]} 22. Kxf2 Qxh2+ {[%emt 0:00:30]} 23. Ke3 Ng4+ {[%emt 0:00:30]} 1/2-1/2